bitfinex/quotes_SOLUSD_20250830
["timestamp","ask_amount","ask_price","bid_price","bid_amount"]
[1756566762790,94.31395297,200.32,200.31,0.03]
[1756566763357,90.13005978,200.32,200.31,0.03]
[1756566763575,90.13005978,200.32,200.29,0.03]
[1756566763776,13.59559401,200.3,200.29,0.03]
[1756566763958,52.41559401,200.3,200.29,0.03]
[1756566764163,57.31578584,200.3,200.29,0.03]
[1756566765186,62.30829707,200.3,200.29,0.03]
[1756566765358,58.12810524,200.3,200.29,0.03]
[1756566765758,19.30810524,200.3,200.29,0.03]
[1756566765966,58.12810524,200.3,200.29,0.03]
[1756566766169,62.13289002,200.3,200.29,0.03]
[1756566766460,7.60494041,200.3,200.29,0.03]
[1756566766679,2.61242918,200.3,200.29,0.34]
[1756566766885,34.99209264,200.32,200.29,0.34]
[1756566767064,26.0,200.3,200.29,0.34]
[1756566767461,26.0,200.3,200.29,0.03]
[1756566770693,31.71251123,200.3,200.29,0.03]
[1756566771494,4.99251123,200.3,200.29,0.03]
[1756566773690,26.0,200.3,200.29,0.03]
[1756566775901,30.99251123,200.3,200.29,0.03]
[1756566776578,31.71251123,200.3,200.29,0.03]
[1756566777484,30.99251123,200.3,200.29,0.03]
[1756566778090,31.71251123,200.3,200.29,0.03]
[1756566779397,30.99251123,200.3,200.29,0.03]
[1756566779575,26.0,200.3,200.29,0.03]
[1756566780685,26.0,200.3,200.29,0.34]
[1756566781593,30.0,200.32,200.29,0.34]
[1756566783792,0.06,200.31,200.29,79.94]
[1756566784697,0.06,200.31,200.29,79.63]
[1756566786075,0.06,200.31,200.29,79.94]
[1756566787202,0.06,200.31,200.29,79.63]
[1756566791273,26.0,200.3,200.29,79.63]
[1756566791502,26.67,200.3,200.29,79.63]
[1756566792788,26.67,200.3,200.29,0.03]
[1756566792789,35.84270306,200.3,200.29,0.03]
[1756566794587,31.66251123,200.3,200.29,0.03]
[1756566795774,37.27058786,200.3,200.29,0.03]
[1756566796396,31.66251123,200.3,200.29,0.03]
[1756566797408,37.27058786,200.3,200.29,0.03]
[1756566797579,50.86618187,200.3,200.29,0.03]
[1756566797780,45.25810524,200.3,200.29,0.03]
[1756566799599,47.87034034,200.3,200.29,0.03]
[1756566801085,49.87289334,200.3,200.29,0.03]
[1756566801620,34.27474633,200.3,200.29,0.03]
[1756566801801,7.60474633,200.3,200.29,0.03]
[1756566802994,8.27474633,200.3,200.29,0.03]
[1756566804514,7.60474633,200.3,200.29,0.03]
[1756566805036,2.6122351,200.3,200.29,0.03]
[1756566805219,4.26365819,200.31,200.29,0.34]
[1756566805387,4.26365819,200.31,200.3,0.31]
[1756566805388,0.06,200.31,200.3,0.31]
[1756566806927,0.06,200.31,200.3,5.30251123]
[1756566814518,0.06,200.31,200.3,84.90251123]
[1756566815331,0.06,200.31,200.3,123.70251123]
[1756566816803,0.06,200.31,200.3,123.39251123]
[1756566818098,0.06,200.31,200.3,123.70251123]
[1756566819415,0.06,200.31,200.3,123.73251123]
[1756566820719,0.06,200.31,200.3,123.42251123]
[1756566821298,0.06,200.31,200.3,123.73251123]
[1756566821803,27.06,200.31,200.3,123.42251123]
[1756566823211,27.06,200.31,200.3,123.73251123]
[1756566825115,27.06,200.31,200.3,123.42251123]
[1756566826706,0.06,200.31,200.3,123.42251123]
[1756566827602,0.06,200.31,200.3,123.40251123]
[1756566829936,27.06,200.31,200.3,123.40251123]
[1756566831018,27.06,200.31,200.3,123.71251123]
[1756566831331,27.06,200.31,200.3,99.63189223]
[1756566831534,27.06,200.31,200.3,138.41189223]
[1756566831910,27.06,200.31,200.3,99.63189223]
[1756566832132,27.06,200.31,200.3,138.41189223]
[1756566837946,22.46615792,200.31,200.3,138.41189223]
[1756566841231,22.46615792,200.31,200.3,152.31748624]
[1756566842932,22.46615792,200.31,200.3,151.98748624]
[1756566843929,29.97,200.33,200.3,151.98748624]
[1756566844245,30.68,200.33,200.3,136.97810524]
[1756566844745,30.68,200.33,200.31,15.00863]
[1756566844938,29.97,200.33,200.32,38.76]
[1756566845340,29.97,200.33,200.32,53.76863]
[1756566847043,59.97,200.33,200.32,138.36064277]
[1756566848026,0.06,200.34,200.33,60.98363805]
[1756566848226,1e-08,200.36,200.35,26.0]
[1756566848444,1e-08,200.36,200.35,64.76]
[1756566848627,1e-08,200.36,200.35,67.07045]
[1756566848944,1e-08,200.36,200.35,67.56957652]
[1756566849445,1e-08,200.36,200.35,77.64555664]
[1756566850517,1e-08,200.36,200.35,77.33555664]
[1756566852636,1e-08,200.36,200.35,72.2508418]
[1756566853239,1e-08,200.36,200.35,219.53888584]
[1756566853440,1e-08,200.36,200.35,219.03975932]
[1756566854850,1e-08,200.36,200.35,180.27975932]
[1756566855153,1e-08,200.36,200.35,219.01975932]
[1756566855353,0.71000001,200.36,200.35,110.61535333]
[1756566856947,0.71000001,200.36,200.35,32.27975932]
[1756566857154,0.71000001,200.36,200.35,71.01975932]
[1756566857327,0.71000001,200.36,200.35,6.99171528]
[1756566857529,0.71000001,200.36,200.35,43.73126528]
[1756566858232,0.71000001,200.36,200.35,45.73211528]
[1756566861654,1e-08,200.36,200.35,45.73211528]
[1756566862066,1e-08,200.36,200.35,71.02015932]
[1756566862561,0.71000001,200.36,200.35,71.02015932]
[1756566862762,0.71000001,200.36,200.35,69.01930932]
[1756566867479,0.71000001,200.36,200.35,30.27930932]
[1756566867641,0.71000001,200.36,200.35,68.99930932]
[1756566867978,1e-08,200.36,200.35,68.99930932]
[1756566869883,0.71000001,200.36,200.35,68.99930932]
[1756566871556,0.71000001,200.36,200.35,69.02930932]
[1756566871871,1e-08,200.36,200.35,69.02930932]
[1756566875369,0.70000001,200.36,200.35,69.02930932]
[1756566877859,1e-08,200.36,200.35,69.02930932]
[1756566879369,1e-08,200.36,200.35,82.93490333]
[1756566879554,1e-08,200.36,200.35,83.43402985]
[1756566879758,0.06,200.39,200.38,4.99051801]
[1756566879960,0.06,200.39,200.38,82.59415605]
[1756566880464,0.06,200.39,200.38,84.59450605]
[1756566880954,0.06,200.39,200.38,206.59450605]
[1756566884060,0.06,200.39,200.38,84.59450605]
[1756566886363,0.06,200.39,200.38,84.57450605]
[1756566886954,0.06,200.39,200.38,206.57450605]
[1756566887756,0.06,200.39,200.38,84.57450605]
[1756566890681,0.06,200.39,200.38,206.57450605]
[1756566893957,0.06,200.39,200.38,84.57450605]
[1756566895381,0.76,200.39,200.38,32.27891204]
[1756566895566,0.76,200.39,200.38,70.95891204]
[1756566900370,0.06,200.39,200.38,70.95891204]
[1756566900685,0.06,200.39,200.38,84.55450605]
[1756566900893,0.06,200.4,200.39,13.59559401]
[1756566901089,0.06,200.41,200.4,38.82363804]
[1756566901262,0.06,200.42,200.41,13.59559401]
[1756566902398,0.06,200.42,200.41,18.58536497]
[1756566903778,0.06,200.42,200.41,140.58536497]
[1756566905190,0.76,200.42,200.41,179.26536497]
[1756566905369,0.06,200.42,200.41,179.26536497]
[1756566906601,0.06,200.42,200.41,204.493409]
[1756566906768,0.06,200.42,200.41,43.813409]
[1756566906969,0.06,200.42,200.4,25.22804403]
[1756566906970,0.76,200.42,200.4,25.22804403]
[1756566907200,0.7,200.41,200.4,25.22804403]
[1756566907406,0.06,200.42,200.4,63.90804403]
[1756566907578,0.7,200.41,200.4,63.90804403]
[1756566907995,0.7,200.41,200.4,25.22804403]
[1756566908380,0.7,200.41,200.4,63.88804403]
[1756566908994,0.7,200.41,200.36,0.03]
[1756566909393,0.7,200.41,200.37,38.66]
[1756566909615,0.7,200.4,200.37,38.66]
[1756566910102,0.7,200.39,200.37,38.66]
[1756566910273,0.7,200.38,200.37,38.66]
[1756566911484,0.7,200.38,200.37,43.65076708]
[1756566911805,0.7,200.38,200.37,38.66]
[1756566912972,0.7,200.38,200.37,43.65076708]
[1756566913784,0.06,200.42,200.37,43.65076708]
[1756566913986,0.76,200.42,200.38,13.59559401]
[1756566914189,0.7,200.41,200.39,38.66]
[1756566914494,0.06,200.42,200.4,38.66]
[1756566914671,0.06,200.42,200.4,43.65000147]
[1756566914875,0.06,200.42,200.37,4.99076708]
[1756566915079,0.7,200.41,200.38,40.66055]
[1756566915275,0.7,200.4,200.38,38.66]
[1756566915798,0.7,200.39,200.38,38.66]
[1756566915980,0.7,200.39,200.38,43.65051801]
[1756566917301,0.7,200.39,200.38,4.99051801]
[1756566917474,0.7,200.39,200.38,43.65051801]
[1756566917676,0.06,200.42,200.38,43.65051801]
[1756566917983,0.7,200.41,200.38,43.65051801]
[1756566918184,0.7,200.4,200.38,43.65051801]
[1756566918372,0.7,200.39,200.38,43.65051801]
[1756566918571,0.7,200.39,200.36,0.03]
[1756566918775,0.7,200.39,200.37,38.66]
[1756566918969,26.06,200.42,200.37,38.97]
[1756566918970,0.76,200.42,200.37,38.97]
[1756566919606,0.76,200.42,200.38,2.00055]
[1756566919791,0.76,200.42,200.39,38.66]
[1756566919792,0.06,200.42,200.39,38.66]
[1756566919993,0.7,200.41,200.39,38.66]
[1756566920301,0.06,200.42,200.4,4.99001996]
[1756566920503,0.06,200.42,200.41,38.66]
[1756566921191,0.06,200.43,200.41,96.47]
[1756566921370,0.06,200.43,200.42,0.31]
[1756566921574,0.06,200.43,200.41,96.47]
[1756566922176,0.06,200.43,200.42,4.989522]
[1756566923106,0.06,200.43,200.42,6.989572]
[1756566923399,0.06,200.43,200.42,20.58516601]
[1756566923717,0.06,200.44,200.43,13.59559401]
[1756566924005,0.06,200.44,200.43,110.06559401]
[1756566924302,0.06,200.44,200.43,114.74486707]
[1756566924615,0.76,200.44,200.43,101.14927306]
[1756566925707,0.06,200.44,200.43,101.14927306]
[1756566926078,0.06,200.44,200.43,114.74486707]
[1756566926279,0.06,200.44,200.43,115.05486707]
[1756566927111,0.06,200.44,200.43,114.74486707]
[1756566927298,0.06,200.44,200.43,115.05486707]
[1756566928309,1e-08,200.44,200.43,115.05486707]
[1756566928481,0.06,200.45,200.43,115.05486707]
[1756566928482,1e-08,200.45,200.43,115.05486707]
[1756566928806,1e-08,200.45,200.44,0.31]
[1756566929509,1e-08,200.47,200.46,39.59559401]
[1756566929701,1e-08,200.47,200.46,78.56559401]
[1756566930088,1e-08,200.47,200.46,93.55997101]
[1756566930282,1e-08,200.47,200.46,98.54849739]
[1756566930683,1e-08,200.47,200.46,220.54849739]
[1756566935894,1e-08,200.47,200.46,220.52849739]
[1756566938299,1e-08,200.47,200.46,181.88849739]
[1756566938497,1e-08,200.47,200.46,220.52849739]
[1756566939097,0.7,200.53,200.52,71.095594]
[1756566939299,0.7,200.53,200.52,109.735594]
[1756566939930,0.7,200.53,200.52,124.726974]
[1756566940314,0.7,200.53,200.52,91.07400771]
[1756566940623,0.7,200.53,200.52,129.71400771]
[1756566941726,0.7,200.53,200.52,129.69400771]
[1756566942715,0.7,200.53,200.52,91.07400771]
[1756566942919,0.7,200.53,200.52,129.69400771]
[1756566943118,0.7,200.53,200.52,91.07400771]
[1756566943328,0.76,200.53,200.52,129.69400771]
[1756566944434,0.76,200.53,200.52,91.07400771]
[1756566944601,0.76,200.53,200.52,129.69400771]
[1756566945214,0.06,200.53,200.52,129.69400771]
[1756566946130,0.7,200.55,200.52,129.69400771]
[1756566946131,0.06,200.56,200.53,71.035594]
[1756566946307,0.06,200.56,200.55,13.59559401]
[1756566946707,0.06,200.56,200.55,16.20354101]
[1756566947316,0.06,200.56,200.55,21.18982871]
[1756566947736,0.06,200.58,200.57,26.0]
[1756566947950,0.7,200.62,200.57,136.05417304]
[1756566948103,0.7,200.62,200.57,135.555594]
[1756566948433,0.7,200.62,200.59,13.59559401]
[1756566948637,0.7,200.62,200.6,38.62]
[1756566949009,0.7,200.62,200.61,4.982085]
[1756566949341,0.7,200.62,200.61,9.96688137]
[1756566950351,26.0,200.7,200.61,9.96688137]
[1756566950514,0.7,200.64,200.62,38.62]
[1756566950713,0.7,200.63,200.62,95.95999999]
[1756566951516,0.7,200.63,200.62,100.94434279]
[1756566955917,0.7,200.63,200.62,62.32434279]
[1756566956120,0.7,200.63,200.62,57.33999999]
[1756566956319,0.7,200.63,200.62,100.92454789]
[1756566956632,0.7,200.63,200.62,95.93999999]
[1756566956822,0.7,200.63,200.62,100.92454789]
[1756566957938,0.7,200.63,200.62,57.33999999]
[1756566958141,0.7,200.63,200.62,95.93999999]
[1756566960521,0.7,200.63,200.62,100.92454789]
[1756566960733,0.7,200.63,200.62,95.93999999]
[1756566962321,0.71,200.65,200.62,100.92454789]
[1756566963822,0.06,200.66,200.62,100.92454789]
[1756566964151,0.71,200.64,200.62,100.92454789]
[1756566965051,0.77,200.66,200.62,100.92454789]
[1756566965230,0.06,200.66,200.62,115.90993689]
[1756566965432,0.71,200.65,200.62,115.90993689]
[1756566966252,0.71,200.65,200.62,100.92454789]
[1756566966551,0.71,200.64,200.62,105.90689689]
[1756566966933,0.77,200.66,200.63,13.59559401]
[1756566967132,0.77,200.66,200.64,38.6]
[1756566967349,0.71,200.65,200.64,52.19559401]
[1756566967655,0.06,200.66,200.64,67.17873701]
[1756566967858,0.71,200.65,200.64,38.6]
[1756566968627,0.06,200.66,200.64,95.93999999]
[1756566968827,0.06,200.66,200.65,4.98380264]
[1756566970153,0.06,200.66,200.65,19.96694664]
[1756566971641,0.06,200.66,200.65,77.30694663]
[1756566972354,0.77,200.66,200.65,115.90694663]
[1756566972860,0.77,200.66,200.65,100.92380263]
[1756566973557,0.06,200.66,200.65,100.92380263]
[1756566974033,0.06,200.66,200.65,115.90694663]
[1756566974234,0.06,200.66,200.65,100.92380263]
[1756566974862,0.77,200.66,200.65,100.92380263]
[1756566976734,0.06,200.66,200.65,100.92380263]
[1756566977159,0.77,200.66,200.65,100.92380263]
[1756566978256,0.06,200.66,200.65,100.92380263]
[1756566979059,0.06,200.66,200.65,114.82939664]
[1756566979758,0.71,200.71,200.67,4.98330592]
[1756566980070,0.71,200.7,200.68,38.58]
[1756566980448,0.71,200.7,200.68,53.560899]
[1756566981785,0.71,200.7,200.69,4.9828093]
[1756566983259,0.71,200.7,200.69,19.9637093]
[1756566983462,30.9808929,200.77,200.69,19.9637093]
[1756566983463,26.0,200.77,200.69,77.30370929]
[1756566983659,26.0,200.77,200.7,38.58]
[1756566984574,26.0,200.76,200.7,43.56232902]
[1756566985557,0.71,200.75,200.7,43.56232902]
[1756566985754,0.71,200.74,200.7,101.61232901]
[1756566986066,9.17868839,200.81,200.71,0.71]
[1756566986067,0.71,200.76,200.71,0.71]
[1756566986375,0.71,200.75,200.72,38.58]
[1756566986673,0.71,200.74,200.73,4.98181637]
[1756566987454,26.71,200.77,200.73,4.98181637]
[1756566987667,0.71,200.76,200.74,38.58]
[1756566988271,0.71,200.75,200.74,38.58]
[1756566989875,0.71,200.75,200.74,43.56156819]
[1756566990047,0.71,200.75,200.74,38.58]
[1756566990868,0.71,200.75,200.74,4.98156819]
[1756566991065,0.71,200.75,200.74,43.56156819]
[1756566992156,0.71,200.75,200.74,38.58]
[1756566992363,0.71,200.75,200.74,95.91999999]
[1756566994155,0.71,200.75,200.74,57.33999999]
[1756566994458,0.71,200.75,200.74,95.91999999]
[1756566994752,0.71,200.75,200.74,57.33999999]
[1756566995379,26.71,200.75,200.74,57.33999999]
[1756566996281,0.71,200.75,200.74,57.33999999]
[1756566997581,5.69132004,200.75,200.67,57.33999999]
[1756566997758,0.67,200.74,200.68,38.58]
[1756566997957,0.67,200.73,200.68,38.58]
[1756566998158,4.98132004,200.75,200.63,27.44377743]
[1756566998159,0.67,200.72,200.63,4.98429945]
[1756566998357,38.45273469,200.76,200.66,13.59559401]
[1756566998358,4.19865906,200.76,200.66,13.59559401]
[1756566998554,6.80420735,200.82,200.69,13.59559401]
[1756566998753,6.80420735,200.82,200.71,13.59559401]
[1756566998754,26.0,200.79,200.71,13.59559401]
[1756566998977,26.0,200.79,200.72,39.53]
[1756566999273,0.67,200.79,200.73,0.69]
[1756566999465,26.67,200.79,200.72,4.98206456]
[1756566999779,0.67,200.78,200.73,38.84]
[1756567000075,0.06,200.75,200.73,38.84]
[1756567000275,0.06,200.75,200.74,0.69]
[1756567001474,0.06,200.75,200.74,5.67156819]
[1756567004276,0.06,200.75,200.74,63.01156818]
[1756567005059,0.06,200.75,200.74,62.32156818]
[1756567007968,0.06,200.75,200.74,76.60716219]
[1756567008770,0.06,200.75,200.74,91.58357519]
[1756567011583,0.06,200.75,200.74,77.29798118]
[1756567011788,0.06,200.75,200.74,101.10156818]
[1756567013974,0.73,200.75,200.74,101.10156818]
[1756567014173,0.06,200.75,200.74,101.10156818]
[1756567014483,0.06,200.75,200.74,101.79156818]
[1756567016380,0.06,200.75,200.74,101.10156818]
[1756567018183,0.06,200.75,200.74,101.79156818]
[1756567018578,0.06,200.75,200.74,101.82156818]
[1756567018783,0.06,200.75,200.74,101.13156818]
[1756567020280,0.06,200.75,200.74,103.12852218]
[1756567020475,0.73,200.75,200.74,98.10695399]
[1756567020791,0.06,200.75,200.74,101.07156818]
[1756567021005,0.06,200.75,200.74,101.76156818]
[1756567021183,0.06,200.75,200.74,101.07156818]
[1756567021781,0.75,200.75,200.74,57.36999999]
[1756567022096,0.75,200.75,200.74,96.10999999]
[1756567022673,0.06,200.75,200.74,101.09156818]
[1756567022900,0.06,200.75,200.74,101.81156818]
[1756567023406,0.06,200.75,200.74,115.40716219]
[1756567023570,0.06,200.75,200.74,62.35156818]
[1756567023769,0.06,200.75,200.74,63.07156818]
[1756567024004,0.06,200.75,200.74,101.87156818]
[1756567025108,0.06,200.75,200.74,115.46716219]
[1756567028095,0.75,200.75,200.74,57.36999999]
[1756567028293,0.75,200.75,200.74,101.19156818]
[1756567028881,0.75,200.75,200.74,38.87]
[1756567029396,0.75,200.75,200.74,0.03]
[1756567029594,0.75,200.75,200.74,38.89]
[1756567030300,0.06,200.75,200.74,43.87156819]
[1756567030612,0.06,200.75,200.74,114.80716219]
[1756567031890,0.06,200.75,200.74,115.52716219]
[1756567032391,0.06,200.75,200.74,114.80716219]
[1756567032788,0.75,200.75,200.74,62.35156818]
[1756567032995,0.06,200.75,200.74,101.21156818]
[1756567033602,0.06,200.75,200.74,115.52716219]
[1756567033799,0.06,200.75,200.74,114.80716219]
[1756567034739,0.06,200.75,200.74,115.52716219]
[1756567034906,0.06,200.75,200.74,114.80716219]
[1756567035215,0.06,200.75,200.74,62.35156818]
[1756567035393,0.75,200.75,200.74,96.24999999]
[1756567035785,0.06,200.75,200.74,96.24999999]
[1756567036209,0.06,200.75,200.74,101.23156818]
[1756567037013,0.06,200.75,200.74,115.54716219]
[1756567037687,0.75,200.75,200.74,57.36999999]
[1756567037893,0.75,200.75,200.74,96.24999999]
[1756567038593,0.75,200.75,200.74,101.23156818]
[1756567038797,0.06,200.75,200.74,101.23156818]
[1756567041693,0.75,200.75,200.74,0.03]
[1756567041926,0.75,200.75,200.74,38.95]
[1756567046311,0.06,200.75,200.74,43.93156819]
[1756567048231,0.06,200.75,200.74,44.65156819]
[1756567049409,0.06,200.75,200.74,5.73156819]
[1756567049612,0.06,200.75,200.74,44.61156819]
[1756567049834,0.06,200.75,200.74,43.89156819]
[1756567050007,0.06,200.75,200.74,44.61156819]
[1756567050520,0.75,200.75,200.74,0.03]
[1756567050713,0.75,200.75,200.74,38.91]
[1756567050917,0.06,200.75,200.74,38.91]
[1756567051736,0.06,200.75,200.74,96.24999999]
[1756567051927,0.06,200.75,200.74,101.23156818]
[1756567053023,0.76,200.75,200.74,96.24999999]
[1756567053423,0.76,200.75,200.74,57.36999999]
[1756567053628,0.76,200.75,200.74,96.24999999]
[1756567053932,0.76,200.75,200.74,0.03]
[1756567054107,26.76,200.75,200.74,0.03]
[1756567054310,30.96108233,200.75,200.74,0.03]
[1756567054933,26.76,200.75,200.74,0.03]
[1756567055122,0.76,200.75,200.74,38.97]
[1756567055612,26.76,200.75,200.74,38.97]
[1756567055812,26.76,200.75,200.74,0.03]
[1756567056011,31.74132004,200.75,200.74,0.03]
[1756567057744,26.76,200.75,200.74,0.03]
[1756567058436,31.74132004,200.75,200.74,0.03]
[1756567061337,35.93585296,200.75,200.74,0.03]
[1756567062518,49.53144697,200.75,200.74,0.03]
[1756567062763,45.33691405,200.75,200.74,0.03]
[1756567062921,45.33691405,200.75,200.74,1e-08]
[1756567063624,47.94322693,200.75,200.74,1e-08]
[1756567064638,49.94157793,200.75,200.74,1e-08]
[1756567067654,88.84157793,200.75,200.74,1e-08]
[1756567069236,49.94157793,200.75,200.74,1e-08]
[1756567069550,88.84157793,200.75,200.74,1e-08]
[1756567070747,91.44239989,200.75,200.74,1e-08]
[1756567072048,52.54239989,200.75,200.74,1e-08]
[1756567072278,88.82157793,200.75,200.74,1e-08]
[1756567073951,49.94157793,200.75,200.74,1e-08]
[1756567074148,88.82157793,200.75,200.74,1e-08]
[1756567074330,49.94157793,200.75,200.74,1e-08]
[1756567074535,88.82157793,200.75,200.74,1e-08]
[1756567074739,88.80157793,200.75,200.74,1e-08]
[1756567075062,91.40237976,200.75,200.74,1e-08]
[1756567076841,88.80157793,200.75,200.74,1e-08]
[1756567077360,91.40247786,200.75,200.74,1e-08]
[1756567077658,95.58628245,200.75,200.74,1e-08]
[1756567078736,56.72628245,200.75,200.74,1e-08]
[1756567078958,90.98703152,200.75,200.74,1e-08]
[1756567079139,92.98528252,200.75,200.74,1e-08]
[1756567080474,13.59559401,200.71,200.69,1e-08]
[1756567080642,38.84,200.7,200.69,1e-08]
[1756567080836,44.52256103,200.7,200.69,1e-08]
[1756567081173,80.11700604,200.7,200.69,1e-08]
[1756567081334,82.724053,200.7,200.69,1e-08]
[1756567081536,82.724053,200.7,200.6,0.71]
[1756567081537,39.59559401,200.66,200.6,0.71]
[1756567081762,30.18474548,200.62,200.58,0.03]
[1756567081956,69.04474548,200.62,200.58,0.74]
[1756567082167,69.04474548,200.62,200.59,0.71]
[1756567082365,64.86,200.62,200.6,0.71]
[1756567082552,64.86,200.62,200.58,0.03]
[1756567082759,4.98479637,200.61,200.59,0.71]
[1756567083261,39.59,200.6,200.58,0.03]
[1756567083437,38.88,200.6,200.58,0.03]
[1756567084660,4.98529338,200.59,200.58,0.03]
[1756567087756,30.98529338,200.59,200.58,0.03]
[1756567088562,30.98504486,200.6,200.58,0.03]
[1756567088768,26.0,200.59,200.58,0.03]
[1756567088946,26.0,200.59,200.58,0.74]
[1756567089346,26.0,200.59,200.58,0.03]
[1756567089743,4.98454232,200.63,200.58,0.74]
[1756567089966,38.88,200.62,200.59,0.71]
[1756567090170,26.0,200.6,200.58,0.03]
[1756567090342,4.98380164,200.66,200.58,0.03]
[1756567090737,26.0,200.64,200.59,0.71]
[1756567090941,4.98380164,200.66,200.59,0.71]
[1756567092169,26.0,200.64,200.59,0.71]
[1756567092679,4.98380164,200.66,200.6,0.71]
[1756567092680,26.0,200.63,200.6,0.71]
[1756567092848,26.0,200.63,200.61,0.71]
[1756567093050,26.0,200.64,200.62,0.71]
[1756567097769,26.0,200.64,200.6,0.71]
[1756567097971,26.0,200.64,200.61,0.71]
[1756567098859,26.0,200.64,200.6,0.71]
[1756567099169,26.0,200.63,200.59,0.03]
[1756567099479,26.0,200.63,200.61,0.71]
[1756567099668,26.0,200.63,200.59,0.03]
[1756567099972,26.0,200.63,200.61,0.71]
[1756567100275,26.0,200.63,200.59,0.03]
[1756567100481,26.0,200.63,200.6,0.71]
[1756567100769,26.0,200.62,200.6,0.71]
[1756567101650,0.71,200.62,200.59,0.03]
[1756567101852,26.71,200.61,200.59,0.03]
[1756567102853,26.0,200.61,200.59,0.03]
[1756567103273,30.98460163,200.62,200.59,0.03]
[1756567103483,0.71,200.6,200.59,0.03]
[1756567104482,31.69460163,200.62,200.59,0.03]
[1756567104683,0.71,200.61,200.59,0.03]
[1756567105168,4.98504486,200.6,200.59,0.03]
[1756567105583,5.69504486,200.6,200.59,0.03]
[1756567107287,4.9845479,200.62,200.59,0.03]
[1756567107585,26.0,200.61,200.59,0.03]
[1756567107761,26.71,200.61,200.59,0.03]
[1756567108495,31.69488634,200.61,200.59,0.03]
[1756567109387,26.0,200.61,200.59,0.03]
[1756567110158,30.9845707,200.62,200.59,0.03]
[1756567110363,26.0,200.61,200.59,0.03]
[1756567110584,26.71,200.61,200.59,0.03]
[1756567110957,0.71,200.61,200.59,0.03]
[1756567111179,26.71,200.61,200.59,0.03]
[1756567111970,0.71,200.61,200.59,0.03]
[1756567112177,26.71,200.61,200.59,0.03]
[1756567113500,26.0,200.62,200.59,0.03]
[1756567113671,26.0,200.62,200.6,0.71]
[1756567114571,26.0,200.61,200.59,0.03]
[1756567116497,26.0,200.61,200.59,0.74]
[1756567117887,26.0,200.62,200.6,0.71]
[1756567118074,5.685692,200.66,200.6,0.71]
[1756567118389,10.66930006,200.66,200.59,0.03]
[1756567118594,26.0,200.63,200.59,0.03]
[1756567118798,4.984376,200.63,200.59,0.03]
[1756567118965,0.7,200.62,200.59,0.03]
[1756567119495,26.0,200.61,200.59,0.74]
[1756567120065,26.0,200.62,200.59,0.03]
[1756567120488,26.7,200.62,200.59,0.03]
[1756567125184,0.7,200.61,200.59,0.03]
[1756567126071,26.7,200.62,200.59,0.03]
[1756567128198,26.0,200.62,200.59,0.03]
[1756567128378,0.7,200.61,200.59,0.03]
[1756567131798,3.73560473,200.6,200.59,0.03]
[1756567132476,3.73633869,200.6,200.59,0.03]
[1756567132683,3.73633869,200.6,200.59,0.74]
[1756567132876,4.19602088,200.66,200.59,58.07999999]
[1756567133076,4.19602088,200.66,200.6,39.45]
[1756567133587,30.19602088,200.66,200.61,0.71]